Cogmind - Beta 15 @@@ ROGUE MODE // 2025.07.05 @ 08:43:28 Player: Florist Result: Destroyed by OD-S85(R) with Subdweller Laser Performance ------------- Evolutions (0) 0 Regions Visited (2) 400 Robots Destroyed (26) 130 Value Destroyed (388) 388 Prototype IDs (0) 0 Alien Tech Used (0) 0 Bonus (0) 0 TOTAL SCORE: 918 Bonus ------- None Cogmind --------- Core Integrity 0/250 Matter 204/300 Energy 250/250 System Corruption 0% Temperature Cool (6) Movement Treading (400) Ox3 Location -10/Subcaves Parts ------- > --- POWER (1) -------- Ion Engine > --- PROPULSION (2) --- Improved Treads > --- UTILITY (2) ------ Huge Storage Unit Light Armor Plating > --- WEAPON (2) ------- Light Assault Rifle Light Assault Rifle > --- INVENTORY (25) --- Light Ion Engine Light Ion Engine Light Treads Light Treads Improved Treads Improved Treads Cooling System Huge Storage Unit Structural Scanner Seismic Detector Seismic Detector Light Armor Plating Light Armor Plating Light Armor Plating Light Armor Plating Beam Cannon Beam Cannon Light Assault Rifle Light Assault Rifle Light Assault Rifle Light Assault Rifle Grenade Launcher Peak State ------------ > --- POWER ------------ Ion Engine > --- PROPULSION ------- Improved Treads Improved Treads > --- UTILITY ---------- Huge Storage Unit Seismic Detector > --- WEAPON ----------- Assault Rifle Light Assault Rifle > --- INVENTORY -------- Light Ion Engine Light Ion Engine Light Treads Light Treads Huge Storage Unit Structural Scanner Seismic Detector Light Armor Plating Light Armor Plating Light Armor Plating Light Armor Plating Light Armor Plating Beam Cannon Beam Cannon Light Assault Rifle Light Assault Rifle Light Assault Rifle Light Assault Rifle Light Assault Rifle Grenade Launcher [Rating: 11] Favorites ----------- Power Ion Engine Engine Ion Engine Propulsion Improved Treads Treads Improved Treads Utility Seismic Detector Device Seismic Detector Storage Huge Storage Unit Protection Light Armor Plating Weapon Assault Rifle Energy Gun Medium Laser Ballistic Gun Assault Rifle Launcher Grenade Launcher Build | -11 -10 -10 ------- Run | Yrd Mat Sub Slots Evolved . | . . . Power . | . . . Propulsion . | . . . Utility . | . . . Weapon . | . . . Parts Attached 16 | 7 7 2 Power 1 | 1 . . Engine 1 | 1 . . Core . | . . . Reactor . | . . . Propulsion 4 | 2 2 . Treads 4 | 2 2 . Leg . | . . . Wheel . | . . . Hover . | . . . Flight . | . . . Utility 5 | 2 2 1 Device 1 | 1 . . Storage 3 | 1 2 . Processor . | . . . Hackware . | . . . Protection 1 | . . 1 Artifact . | . . . Weapon 6 | 2 3 1 Energy Gun 2 | 1 1 . Energy Cannon . | . . . Ballistic Gun 3 | 1 1 1 Ballistic Cannon . | . . . Launcher 1 | . 1 . Special Weapon . | . . . Impact Weapon . | . . . Slashing Weapon . | . . . Piercing Weapon . | . . . Special Melee Weapon . | . . . Unidentified Prototypes . | . . . Parts Lost 2 | . . 2 Power . | . . . Propulsion 1 | . . 1 Utility . | . . . Weapon 1 | . . 1 Highest Loss Streak 2 | . . 2 To Critical Strikes . | . . . Average Backups 12 | 3 13 22 Power 1 | . 1 2 Propulsion 2 | 1 2 4 Utility 4 | . 5 9 Weapon 4 | . 4 7 Tool/Special . | . . . Unused Backups 21 | . 3 18 Power 2 | . . 2 Propulsion 4 | . 2 2 Utility 8 | . . 8 Weapon 7 | . 1 6 Tool/Special . | . . . Average Slot Usage (%) 99 | . 99 97 Engine 14 | . 14 14 Treads 27 | . 28 25 Device 13 | . 14 2 Storage 14 | . 14 14 Energy Gun 8 | . 9 . Ballistic Gun 19 | . 18 28 Peak Build Rating 11 | 7 11 11 Average Rating 9 | 5 9 10 On Entrance 6 | . 7 11 Naked Turns . | . . . Heaviest Build 91 | 14 91 91 Greatest Support 46 | 40 46 46 Greatest Overweight (x) 1 | . 1 1 Average Overweight (x) . | . . 1 Largest Inventory Capacity 25 | 8 25 25 Average Capacity 20 | 6 21 25 Most Carried 23 | 5 23 23 Average Carried 12 | 3 13 22 Final Capacity 25 | 8 25 25 Final Carried 23 | 5 23 22 Class Distribution -------------------- 100% | Mutant Dominant Class ---------------- Mutant | -10/Materials Mutant | -10/Subcaves Resources | -11 -10 -10 ----------- Run | Yrd Mat Sub Matter Collected 489 | 291 198 . Remotely . | . . . Salvage Created 634 | 152 482 . Parts 56 | 8 48 . Haulers Intercepted 2 | . 2 . Recyclers Shooed . | . . . Parts Field Recycled . | . . . Retrieved Matter . | . . . Parts Self-Destructed 2 | . . 2 Prevented . | . . . Kills | -11 -10 -10 ------- Run | Yrd Mat Sub Combat Hostiles Destroyed 15 | . 15 . Guns 10 | . 10 . AOE 5 | . 5 . Classes Destroyed 8 | 2 6 . Worker 2 | . 2 . Tunneler 3 | 3 . . Hauler 2 | . 2 . Recycler 1 | 1 . . Operator 1 | . 1 . Watcher 2 | . 2 . Swarmer 9 | . 9 . Grunt 6 | . 6 . Best Kill Streak 7 | 4 7 . Combat Bots Only 6 | . 6 . Max Kills in Single Turn 4 | 2 4 . Gunslinging . | . . . Exploded 3 | . 3 . Melee . | . . . Uniques/NPCs Destroyed . | . . . Combat | -11 -10 -10 -------- Run | Yrd Mat Sub Hostile Shots Fired 92 | . 70 22 Missed 31 | . 27 4 Hits 61 | . 43 18 Projectile 61 | . 43 18 Damage Taken 869 | . 419 450 Core 254 | . 107 147 Absorbed by Shields . | . . . Core Remaining (%) 100 | 100 . . Volleys Fired 70 | 7 55 8 Largest 2 | 2 2 2 Hottest 70 | 60 70 40 Shots Fired 138 | 14 108 16 Gun 136 | 14 106 16 Cannon . | . . . Launcher 2 | . 2 . Special . | . . . Kinetic 81 | 7 58 16 Thermal 55 | 7 48 . Explosive 2 | . 2 . Electromagnetic . | . . . Robot Hit Streak 17 | 7 13 17 Robot Miss Streak 8 | 1 8 . Penetration Max . | . . . Secondary Targets 2 | . 2 . Max Gunslinging Chain 1 | . 1 . Shots Hit Robots 87 | 11 60 16 Core Hits 39 | 4 34 1 Critical Kills 1 | 1 . . Critical Parts Destroyed . | . . . Critical Strikes 4 | 1 3 . Burn 3 | . 3 . Destroy 1 | 1 . . Melee Attacks . | . . . Impact . | . . . Slashing . | . . . Piercing . | . . . Sneak Attacks . | . . . Combat Hostiles . | . . . Follow-up Attacks . | . . . Damage Inflicted 1306 | 139 1031 136 Guns 1032 | 139 757 136 Cannons . | . . . Explosions 274 | . 274 . Melee . | . . . Ramming . | . . . Kinetic 531 | 78 317 136 Thermal 501 | 61 440 . Explosive 274 | . 274 . Electromagnetic . | . . . Impact . | . . . Slashing . | . . . Piercing . | . . . Highest Corruption . | . . . Average Corruption . | . . . Corruption Purged . | . . . Corruption Blocked . | . . . Overload Shots . | . . . Overflow Damage . | . . . Projectiles . | . . . Explosions . | . . . Melee . | . . . Knockbacks . | . . . Impact . | . . . Kinetic . | . . . Secondary . | . . . Self-Inflicted Damage . | . . . Shots . | . . . Rammed . | . . . Targets Rammed . | . . . Kicked . | . . . Crushed . | . . . Highest Temperature 126 | . 126 . Average Temperature 33 | . 33 . Received Heat Transfer 270 | . 129 141 Siege Activations . | . . . Martial Activations . | . . . Shielding Activations . | . . . Robots Disrupted . | . . . Combat Hostiles . | . . . Robots Corrupted . | . . . Combat Hostiles . | . . . Parts Fried . | . . . Impact Corruptions . | . . . Robots Melted . | . . . Combat Hostiles . | . . . Parts Melted 1 | . 1 . Heat Transferred 1667 | 150 1517 . Parts Sabotaged . | . . . Parts Stolen . | . . . Parts Stripped . | . . . Power Chain Reactions . | . . . Alert | -11 -10 -10 ------- Run | Yrd Mat Sub Maximum Alert Level 1 | . 1 . Low Security (%) 91 | 100 90 . Level 1 8 | . 9 . Level 2 . | . . . Level 3 . | . . . Level 4 . | . . . Level 5 . | . . . High Security . | . . . Max Security . | . . . Peak Influence 234 | 10 234 . Initial . | . . . Average 83 | 1 89 . Influence Increases 518 | 20 498 . Destroy 0b10 Robot/C 300 | . 300 . Destroy 0b10 Robot/NC 55 | 20 35 . Destroy Leader 68 | . 68 . Successful Hack 26 | . 26 . Destroy Structure 9 | . 9 . Lose Combat Pursuer 60 | . 60 . Influence Decreases 492 | 20 369 103 Entered New Map 63 | . . 63 Time Decay 409 | 20 369 20 Lost Part 20 | . . 20 Squads Dispatched 2 | . 2 . Investigation 1 | . 1 . Extermination . | . . . Reinforcement 1 | . 1 . Assault . | . . . Garrison . | . . . Intercept . | . . . Searches Triggered . | . . . Construction Impeded . | . . . Haulers Reinforced . | . . . Active Scanning Responses . | . . . Cargo Convoy Interrupts . | . . . Stealth | -11 -10 -10 --------- Run | Yrd Mat Sub Distress Signals 4 | . 4 . Communications Jammed . | . . . Distress Signals . | . . . Times Spotted 33 | . 31 2 Peak Tracking Total 6 | . 6 2 Tactical Retreats 4 | . 4 . Traps | -11 -10 -10 ------- Run | Yrd Mat Sub Traps Triggered 1 | . 1 . Indirectly . | . . . Trap Hack Attempts . | . . . Triggered . | . . . Disarmed . | . . . Reprogrammed . | . . . Reused . | . . . Traps Extracted . | . . . Installed . | . . . Triggered . | . . . Machines | -11 -10 -10 ---------- Run | Yrd Mat Sub Machines Disabled . | . . . Max in Single Turn . | . . . Machines Repaired . | . . . Machines Dismantled . | . . . Machines Sabotaged . | . . . Overloaded Fab Kills . | . . . Hacking | -11 -10 -10 --------- Run | Yrd Mat Sub Machines Accessed 7 | . 7 . Terminals 7 | . 7 . Fabricators . | . . . Repair Stations . | . . . Recycling Units . | . . . Scanalyzers . | . . . Garrison Access . | . . . Total Hacks 16 | . 16 . Successful 11 | . 11 . Failed 5 | . 5 . Catastrophic . | . . . Database Lockouts . | . . . Manual 17 | . 17 . Terminals 16 | . 16 . Fabricators . | . . . Repair Stations . | . . . Recycling Units . | . . . Scanalyzers . | . . . Garrison Access . | . . . Terminal Hacks . | . . . Fabricator Hacks . | . . . Repair Station Hacks . | . . . Recycling Unit Hacks . | . . . Scanalyzer . | . . . Garrison Access Hacks . | . . . Unauthorized Hacks 10 | . 10 . Terminals 10 | . 10 . Botnet 5 | . 5 . Skim 5 | . 5 . Fabricators . | . . . Repair Stations . | . . . Recycling Units . | . . . Scanalyzers . | . . . Garrison Access . | . . . Data Cores Recovered . | . . . Used . | . . . Hacking Detections 5 | . 5 . Full Trace Events . | . . . Feedback Events . | . . . Feedback Blocked . | . . . Robot Schematics Acquired . | . . . Robots Built . | . . . Authchips . | . . . Time . | . . . Total Robot Build Rating . | . . . Part Schematics Acquired . | . . . Parts Built . | . . . Authchips . | . . . Time . | . . . Total Part Build Rating . | . . . Parts Repaired . | . . . Time . | . . . Parts Recycled . | . . . Recycled Matter . | . . . Retrieved Matter . | . . . Retrieved Components . | . . . Parts Scanalyzed . | . . . Part Schematics Acquired . | . . . Parts Damaged . | . . . Bothacking | -11 -10 -10 ------------ Run | Yrd Mat Sub Used RIF Installer . | . . . Robots Hacked . | . . . Non-combat . | . . . Combat . | . . . Robot Hacks Applied . | . . . Relay Couplers Released . | . . . Fabnet Peak Effective % . | . . . Robots Rewired . | . . . Allies Hacked . | . . . Hacks Repelled . | . . . Allies | -11 -10 -10 -------- Run | Yrd Mat Sub Total Allies . | . . . Largest Group . | . . . Highest-Rated Group . | . . . Highest-Rated Ally . | . . . Total Orders . | . . . Ally Attacks . | . . . Total Damage . | . . . Kills . | . . . Allies Corrupted . | . . . Allies Melted . | . . . Intel | -11 -10 -10 ------- Run | Yrd Mat Sub Active Infowar (turns) 1901 | 42 1849 10 Seismic 1901 | 42 1849 10 Robot Analysis Total . | . . . Derelict Logs Recovered . | . . . Drone Launches . | . . . Drone Recoveries . | . . . Exploration | -11 -10 -10 ------------- Run | Yrd Mat Sub Turns Passed 2033 | 139 1849 45 Spaces Moved 784 | 67 710 7 Core 3 | 3 . . Treads 781 | 64 710 7 Legs . | . . . Wheels . | . . . Hover . | . . . Flight . | . . . Fastest Speed 50 | 50 160 240 Average Speed 219 | 155 225 240 Slowest Speed 240 | 160 240 240 Overloaded Moves . | . . . Propulsion Burnouts . | . . . Robots Hopped . | . . . Potential Cave-ins . | . . . Cave-ins Triggered . | . . . Exploration Rate (%) 34 | 4 97 1 Regions Visited 2 Branch Regions 1 Pre-discovered Areas . | . . . Known Exits Taken . | . . . Unknown Exits Taken 2 | 1 1 . Scrap Searched . | . . . Spaces Dug . | . . . Terrain Destroyed 8 | . 8 . Melee . | . . . Projectile . | . . . AOE 8 | . 8 . Terrain Rammed . | . . . Walls Destroyed . | . . . Machines Disabled . | . . . Actions | -11 -10 -10 --------- Run | Yrd Mat Sub Total 961 | 85 854 22 Wait 55 | . 50 5 Move 782 | 66 709 7 Hop . | . . . Pick Up 27 | 5 22 . Fast Attach 8 | 7 1 . Attach 2 | . 1 1 Detach 1 | . 1 . Swap 7 | . 6 1 Drop 9 | . 9 . Fire 70 | 7 55 8 Melee . | . . . Ram . | . . . Kick . | . . . Crush . | . . . Escape Stasis . | . . . Rewire . | . . . Trap . | . . . Miscellaneous . | . . . Route ------- -11/Scrapyard -10/Materials (discovered 5 exits: [*Mat x3] / *Min / [*Sub]) -10/Subcaves History --------- Turn | Location | Event 8 | -11/Scrapyard | Discovered new exit (range 14) 140 | -11/Scrapyard | Entered Materials 310 | -10/Materials | Build established: Mutant 461 | -10/Materials | Discovered new exit (range 8) 802 | -10/Materials | Discovered new exit (range 16) 1086 | -10/Materials | Discovered new exit (range 16) 1248 | -10/Materials | Discovered new exit (range 9) 1377 | -10/Materials | Identified exit to Mines 1423 | -10/Materials | Learned 4 Recycling zone layouts 1459 | -10/Materials | Learned location of 1 exit from Storage 1485 | -10/Materials | Learned 4 Recycling zone layouts 1503 | -10/Materials | Learned 4 Recycling zone layouts 1532 | -10/Materials | Learned 2 Storage zone layouts 1570 | -10/Materials | Learned 4 Subcaves zone layouts 1989 | -10/Materials | Entered Subcaves 2019 | -10/Subcaves | Core integrity fell below 50% 2031 | -10/Subcaves | Core integrity fell below 20% 2034 | -10/Subcaves | Destroyed by OD-S85(R) with Subdweller Laser Last Messages --------------- 01667_ Connecting with Terminal... >>Trojan(Botnet) Trojan loaded successfully. Testing... Terminal linked with 4 systems. Awaiting botnet instructions. 01696_ K-01 Serf cleans the Recycling Unit. 01696_ Connecting with Terminal... 01699_ K-01 Serf cleans the Recycling Unit. 01800_ Destroyed Lgt. Ion Engine. 01834_ W-16 Scout destroyed. 01839_ Acquired 15 matter. 01886_ Acquired Imp. Treads. 01900_ Acquired Cooling System. LOCATION=UNKNOWN AMBIENT_HEAT=-10 GOAL=ESCAPE Loading 4 Subcaves zones... 02016_ Assault Rifle destroyed. 02022_ Imp. Treads destroyed. Map ----- +----------------------------------------------------+ | ?????????????????????????????????????????????? | | ?????????????????????????????????????????????? | | ?????????????????????????????????????????????? | | ?????????????????????????????????????????????? | | ?????????????????????????????????????????????? | | ?????????????????????????????????????????????? | | ?????????????????????????????????????????????? | | ?????????????????????????????????????????????? | | ?????????????????????????????????????????????? | | ?????????????????????????????????????????????? | | ?????????????????????????????????????????????? | | ?????????????????????????????????????????????? | | ?????????????????????????????????????????????? | | ????????????????????????? "??????????????????? | | ???????????????????????? ""??????????????????? | | ??????????????????????? ""??????????????????? | | ????????????????????????"" ??????????????????? | | ????????????????????????"" ??????????????????? | | ????????????????????????# ??????????????????? | | ????????????????????????? ##????????????????? | | ????????????????????????? ##???????????????? | | ?????????????????????????? #???????????????? | | ?????????????????????????? ##??????????????? | | ??????????????????????????# #??????????????? | | ???????????????????????#### #??????????????? | | ??????????????????????## @R #??????????????? | | ??????????????????????# R ###??????????????? | | ??????????????????????# ##???????????????? | | ??????????????????????# #???????????????? | | ??????????????????????# #???????????????? | | ??????????????????????# #??????????????? | | ??????????????????????# #?????????????? | | ??????????????????????## # ##?????????????? | | ???????????????????????##### #?????????????? | | ???????????????????????????? ##?????????????? | | ???????????????????????????? ??????????????? | | ???????????????????????????? #?????????????? | | ???????????????????????????? ##?????????????? | | ???????????????????????????? #??????????????? | | ???????????????????????????? #??????????????? | | ???????????????????????????? #??????????????? | | ?????????????????????????????????????????????? | | ?????????????????????????????????????????????? | | ?????????????????????????????????????????????? | | ?????????????????????????????????????????????? | | ?????????????????????????????????????????????? | | ?????????????????????????????????????????????? | | ?????????????????????????????????????????????? | | ?????????????????????????????????????????????? | | ?????????????????????????????????????????????? | +----------------------------------------------------+ Best States ------------- Heat Dissipation 25 Energy Generation 10 Energy Capacity 250 Matter Stores 300 Matter Capacity 300 Sight Range 16 Terrain Scan Density 10 Armor Coverage 150 Evasion (%) 40 Recoil Reduction 2 Item Schematics ----------------- None Robot Schematics ------------------ None Fabricated ------------ Nothing Repaired ---------- Nothing Alien Tech Used ----------------- None Achievements -------------- None Challenges ------------ None Game ------ Seed DroneGuidanceRegenerator Manual? 0 Play Time 00:13:06 Cumulative 178.4 hours Start 2025.07.05 @ 08:21:23 End 2025.07.05 @ 08:43:28 Sessions 1 Manual Loads 0 Difficulty Rogue Special Mode None Game No. 162 Rogue 162 Adventurer 0 Explorer 0 Win Type - Total 10 Types 5/0/3/2/0/0/0/0/0/0 Lore% 71 Gallery% 66 Achievement% 63 Wizard Run 0 Options --------- Layout 1 ASCII 0 Keyboard 0 Movement Numpad Keybinds 0 Fullscreen 1 Font 32/SmallcapsGlow Map View 77x35 Zoom Use 0% Tactical HUD 1 Map Filters NONE Filters NONE Steam 1 RUN: 98d9ac11-bed5-4ed9-a653-6ed6cb8e4b9a